Cogmind - Beta 9.2 @@@ ROGUE MODE // 2019.11.17 @ 18:05:40 Player: sideriver81 Result: Destroyed by CW-VSB(z) with Zionite Laser-S Performance ------------- Evolutions (3) 1500 Regions Visited (10) 2000 Robots Destroyed (93) 465 Value Destroyed (2658) 2658 Prototype IDs (33) 660 Alien Tech Used (0) 0 Bonus (806) 806 TOTAL SCORE: 8089 Bonus ------- High Alert Combat Kills 91 Follower Combat Kills 115 Aligned with FarCom 300 Met Imprinter 300 Cogmind --------- Core Integrity 0/700 Matter 267/300 Energy 62/100 System Corruption 0% Temperature Cool (18) Movement Core (50) Location -7/Deep Caves Parts ------- > --- POWER (1) -------- (None) > --- PROPULSION (4) --- (None) > --- UTILITY (5) ------ Enhanced Optical Array > --- WEAPON (3) ------- (None) > --- INVENTORY (4) ---- Medium Storage Unit Phasing AFG Riot Gun Ripper Peak State ------------ > --- POWER ------------ Light Nuclear Core > --- PROPULSION ------- Carbon-fiber Leg Carbon-fiber Leg Titanium Leg Improved Titanium Leg > --- UTILITY ---------- Improved Heat Sink Lightpack 2.0 Enhanced Optical Array Insulated Plating > --- WEAPON ----------- Lightning Gun Precision Shock Rifle Gauss Rifle > --- INVENTORY -------- Light Nuclear Core Light Nuclear Core Light Angular Momentum Engine Carbon-fiber Leg Carbon-fiber Leg VTOL Module Xenon Bombardment Thruster Cooled VTOL Module Cooled VTOL Module Cooling System Coolant Injector Medium Storage Unit Large Storage Unit Advanced Targeting Computer Transmission Jammer Insulated Plating Insulated Plating Hacking Suite Hacking Suite System Shield Shock Rifle Lightning Gun High-powered Shotgun Heavy Mace [Rating: 66] Favorites ----------- Power Light Nuclear Core Engine Ion Engine Power Core Light Nuclear Core Propulsion Aluminum Leg Treads Light Treads Leg Aluminum Leg Wheel Compact Wheel Hover Unit Hover Unit Flight Unit Flight Unit Utility Improved Heat Sink Device Improved Heat Sink Storage Medium Storage Unit Processor Enhanced Optical Array Protection Insulated Plating Weapon Mining Claw Energy Gun Lightning Gun Energy Cannon Advanced Beam Cannon Ballistic Gun High-powered Shotgun Impact Weapon Makeshift Hammer Slashing Weapon Mining Claw Build | -11 -10 -10 -10 -9 -8 -7 -7 -7 -7 -7 ------- Run | Scr Mat Min Exi Min Mat Fac Low Low Zio Dee Slots Evolved 6 | . . . . . 4 2 . . . . Power . | . . . . . . . . . . . Propulsion 2 | . . . . . 2 . . . . . Utility 3 | . . . . . 2 1 . . . . Weapon 1 | . . . . . . 1 . . . . Parts Attached 129 | 6 11 2 3 2 49 30 . 16 8 2 Power 9 | 1 . . . 1 3 2 . 1 . 1 Engine 2 | 1 . . . . 1 . . . . . Core 7 | . . . . 1 2 2 . 1 . 1 Reactor . | . . . . . . . . . . . Propulsion 43 | 2 6 1 . 1 17 11 . 5 . . Treads 1 | . 1 . . . . . . . . . Leg 37 | 2 2 1 . 1 16 10 . 5 . . Wheel 1 | . 1 . . . . . . . . . Hover 1 | . 1 . . . . . . . . . Flight 3 | . 1 . . . 1 1 . . . . Utility 37 | 1 3 . 3 . 13 5 . 4 7 1 Device 11 | . 2 . 1 . 2 2 . . 4 . Storage 8 | 1 1 . 2 . 3 . . 1 . . Processor 2 | . . . . . . 2 . . . . Hackware . | . . . . . . . . . . . Protection 16 | . . . . . 8 1 . 3 3 1 Artifact . | . . . . . . . . . . . Weapon 40 | 2 2 1 . . 16 12 . 6 1 . Energy Gun 20 | 1 . . . . 10 7 . 1 1 . Energy Cannon 1 | . . . . . 1 . . . . . Ballistic Gun 11 | 1 . . . . 4 3 . 3 . . Ballistic Cannon . | . . . . . . . . . . . Launcher . | . . . . . . . . . . . Special Weapon . | . . . . . . . . . . . Impact Weapon 4 | . . . . . . 2 . 2 . . Slashing Weapon 4 | . 2 1 . . 1 . . . . . Piercing Weapon . | . . . . . . . . . . . Special Melee Weapon . | . . . . . . . . . . . Unidentified Prototypes 11 | . . . . . 7 3 . . 1 . Parts Lost 39 | . . . . 2 9 5 . 11 . 12 Power 7 | . . . . 1 1 1 . 2 . 2 Propulsion 10 | . . . . 1 2 2 . 1 . 4 Utility 13 | . . . . . 3 1 . 5 . 4 Weapon 9 | . . . . . 3 1 . 3 . 2 Highest Loss Streak 12 | . . . . 2 3 3 . 11 . 12 Average Slot Usage (%) 94 | . 95 100 99 99 84 91 92 97 100 91 Engine 4 | . 14 14 14 11 4 . . . . . Core 4 | . . . . 2 4 6 7 6 7 6 Leg 30 | . 27 28 28 27 34 29 30 30 30 28 Device 8 | . 10 14 13 14 5 8 7 7 7 14 Storage 9 | . 14 14 14 14 9 7 7 6 7 6 Processor 3 | . . . . . . 6 7 7 7 7 Protection 7 | . . . . . 9 6 7 13 14 6 Energy Gun 8 | . 5 . . . 11 14 15 7 10 12 Ballistic Gun 5 | . 5 . . . 3 7 7 11 7 5 Slashing Weapon 7 | . 16 28 28 28 1 . . . . . Naked Turns . | . . . . . . . . . . . Heaviest Build 51 | 13 18 18 18 18 35 31 26 35 51 36 Greatest Support 67 | 20 20 20 20 20 50 67 67 67 60 60 Greatest Overweight (x) 1 | 1 1 . . 1 . . . . . . Average Overweight (x) . | . . . . . . . . . . . Largest Inventory Capacity 30 | 6 8 8 24 8 30 24 24 24 8 8 Average Capacity 14 | 5 7 8 8 8 24 24 24 9 8 7 Most Carried 30 | 6 8 8 10 8 30 24 24 24 8 8 Average Carried 14 | 4 7 7 7 8 21 23 23 9 7 7 Final Capacity 24 | 6 8 8 8 8 24 24 24 8 8 4 Final Carried 24 | 6 8 8 8 8 24 24 24 8 8 4 Class Distribution -------------------- 27% | Scavenger-Mutant 24% | Mutant 11% | Hauler-Skirmisher 8% | Scavenger-Tank 7% | Hauler-Mutant 5% | Tank 5% | Hauler-Tank 5% | Scavenger-Skirmisher 4% | Assassin Dominant Class ---------------- Mutant | -10/Materials Mutant | -10/Mines Mutant | -10/Exiles Assassin | -9/Mines Scavenger-Mutant | -8/Materials Hauler-Skirmisher | -7/Factory Hauler-Tank | -7/Lower Caves Tank | -7/Lower Caves Scavenger-Mutant | -7/Zion Scavenger-Skirmisher | -7/Deep Caves Resources | -11 -10 -10 -10 -9 -8 -7 -7 -7 -7 -7 ----------- Run | Scr Mat Min Exi Min Mat Fac Low Low Zio Dee Matter Collected 1846 | 208 195 20 . 50 586 482 . 262 24 19 Remotely . | . . . . . . . . . . . Salvage Created 3817 | . 95 37 . 46 2461 826 . 289 . 63 Parts 198 | . 13 4 . 1 121 42 . 14 . 3 Haulers Intercepted 7 | . . . . . 5 2 . . . . Recyclers Shooed 3 | . 1 . . . 2 . . . . . Parts Field Recycled . | . . . . . . . . . . . Retrieved Matter . | . . . . . . . . . . . Parts Self-Destructed 22 | . . . . . . . . 22 . . Prevented 9 | . . . . . . . . 9 . . Kills | -11 -10 -10 -10 -9 -8 -7 -7 -7 -7 -7 ------- Run | Scr Mat Min Exi Min Mat Fac Low Low Zio Dee Combat Hostiles Destroyed 65 | . 4 2 . 1 36 13 . 7 . 2 Melee 4 | . . 2 . 1 1 . . . . . Guns 46 | . 4 . . . 26 9 . 6 . 1 AOE 11 | . . . . . 6 4 . 1 . . Classes Destroyed 15 | . 3 . . . 7 3 . . . 2 Worker 2 | . . . . . 1 1 . . . . Builder 7 | . . . . . 6 1 . . . . Hauler 7 | . . . . . 5 2 . . . . Recycler 7 | . . . . . 5 2 . . . . Operator 1 | . . . . . 1 . . . . . Watcher 4 | . 1 . . . 1 2 . . . . Swarmer 20 | . 3 2 . . 10 3 . 2 . . Grunt 32 | . 1 . . 1 19 6 . 5 . . Brawler 2 | . . . . . 1 1 . . . . Duelist 1 | . . . . . . 1 . . . . Sentry 6 | . . . . . 6 . . . . . Hunter 1 | . . . . . . 1 . . . . Programmer 1 | . . . . . . 1 . . . . Z-Light 1 | . . . . . . . . . . 1 Assembled 1 | . . . . . . . . . . 1 Best Kill Streak 7 | . 5 2 . 1 7 6 . 2 . 1 Combat Bots Only 7 | . 4 2 . 1 7 5 . 2 . 1 Max Kills in Single Turn 6 | . 1 1 . 1 4 6 . 2 . 1 Gunslinging 1 | . . . . . . . . 1 . . Exploded 4 | . . . . . 1 4 . 1 . . Melee 1 | . . 1 . 1 1 . . . . . Uniques/NPCs Destroyed . | . . . . . . . . . . . Combat | -11 -10 -10 -10 -9 -8 -7 -7 -7 -7 -7 -------- Run | Scr Mat Min Exi Min Mat Fac Low Low Zio Dee Damage Taken 6209 | . 170 59 . 231 1987 826 . 1023 . 1913 Core 1028 | . 20 23 . 84 184 135 . 81 . 501 Absorbed by Shields . | . . . . . . . . . . . Core Remaining (%) 71 | 100 . . . 49 66 . . . . . Volleys Fired 195 | . 11 . . . 107 41 . 25 . 11 Largest 3 | . 2 . . . 2 3 . 3 . 3 Hottest 155 | . 70 . . . 100 155 . 138 . 130 Shots Fired 411 | . 22 . . . 187 122 . 65 . 15 Gun 411 | . 22 . . . 187 122 . 65 . 15 Cannon . | . . . . . . . . . . . Launcher . | . . . . . . . . . . . Special . | . . . . . . . . . . . Kinetic 139 | . 11 . . . 43 48 . 33 . 4 Thermal 11 | . 11 . . . . . . . . . Explosive . | . . . . . . . . . . . Electromagnetic 261 | . . . . . 144 74 . 32 . 11 Robot Hit Streak 16 | . 5 . . . 16 7 . 7 . 3 Robot Miss Streak 6 | . 3 . . . 4 3 . 6 . 4 Penetration Max 1 | . . . . . . 1 . . . . Secondary Targets 5 | . . . . . 2 1 . 2 . . Max Gunslinging Chain 1 | . . . . . 1 1 . 1 . . Shots Hit Robots 286 | . 14 3 . 11 150 65 . 36 . 7 Core Hits 153 | . 7 2 . 2 89 33 . 17 . 3 Critical Hits 1 | . . . . . 1 . . . . . Critical Kills . | . . . . . . . . . . . Critical Parts Destroyed 1 | . . . . . 1 . . . . . Melee Attacks 57 | . 2 15 . 21 8 3 . 8 . . Impact 11 | . . . . . . 3 . 8 . . Slashing 46 | . 2 15 . 21 8 . . . . . Piercing . | . . . . . . . . . . . Sneak Attacks 2 | . . 1 . 1 . . . . . . Combat Hostiles 1 | . . 1 . . . . . . . . Follow-up Attacks 7 | . 1 1 . 3 2 . . . . . Damage Inflicted 7282 | . 188 95 . 291 3729 2168 . 601 . 210 Guns 4284 | . 140 . . . 2418 1119 . 536 . 71 Cannons . | . . . . . . . . . . . Explosions 2371 | . . . . . 1118 1049 . 65 . 139 Melee 627 | . 48 95 . 291 193 . . . . . Ramming . | . . . . . . . . . . . Kinetic 1105 | . 52 . . . 358 407 . 274 . 14 Thermal 2135 | . 88 . . . 933 1049 . 65 . . Explosive 185 | . . . . . 185 . . . . . Electromagnetic 3230 | . . . . . 2060 712 . 262 . 196 Impact . | . . . . . . . . . . . Slashing 627 | . 48 95 . 291 193 . . . . . Piercing . | . . . . . . . . . . . Highest Corruption . | . . . . . . . . . . . Average Corruption . | . . . . . . . . . . . Corruption Purged . | . . . . . . . . . . . Overload Shots . | . . . . . . . . . . . Overflow Damage 307 | . . . . 58 85 164 . . . . Projectiles . | . . . . . . . . . . . Explosions 249 | . . . . . 85 164 . . . . Melee 58 | . . . . 58 . . . . . . Knockbacks . | . . . . . . . . . . . Impact . | . . . . . . . . . . . Kinetic . | . . . . . . . . . . . Secondary . | . . . . . . . . . . . Self-Inflicted Damage 581 | . . . . . 529 52 . . . . Shots 12 | . . . . . 11 1 . . . . Rammed . | . . . . . . . . . . . Targets Rammed . | . . . . . . . . . . . Kicked . | . . . . . . . . . . . Crushed . | . . . . . . . . . . . Highest Temperature 410 | . 48 . . . 410 144 . 99 . 24 Average Temperature 70 | . 21 . . . 101 42 . 37 . 10 Received Heat Transfer 1731 | . 12 . . 126 531 297 . 207 . 558 Effects 2 | . . . . . 2 . . . . . Shutdowns 1 | . . . . . 1 . . . . . Energy Bleed 1 | . . . . . 1 . . . . . Siege Activations . | . . . . . . . . . . . Robots Corrupted 6 | . . . . . 5 . . . . 1 Combat Hostiles 4 | . . . . . 3 . . . . 1 Parts Fried 17 | . . . . . 11 4 . 1 . 1 Impact Corruptions . | . . . . . . . . . . . Robots Melted . | . . . . . . . . . . . Combat Hostiles . | . . . . . . . . . . . Parts Melted 1 | . . . . . . 1 . . . . Heat Transferred 2009 | . 259 . . . 900 800 . 50 . . Parts Sabotaged . | . . . . . . . . . . . Parts Stolen . | . . . . . . . . . . . Parts Stripped . | . . . . . . . . . . . Power Chain Reactions 14 | . . . . . 12 1 . 1 . . Missiles Intercepted . | . . . . . . . . . . . Alert | -11 -10 -10 -10 -9 -8 -7 -7 -7 -7 -7 ------- Run | Scr Mat Min Exi Min Mat Fac Low Low Zio Dee Peak Influence 703 | . 151 98 . 50 703 394 . . . . Average Influence 177 | . 125 55 . 21 244 208 . . . . Maximum Alert Level 3 | . . . . . 3 1 . . . . Low Security (%) 62 | 100 100 100 . 100 52 36 . . . . Level 1 25 | . . . . . 15 63 . . . . Level 2 12 | . . . . . 30 . . . . . Level 3 . | . . . . . . . . . . . Level 4 . | . . . . . . . . . . . Level 5 . | . . . . . . . . . . . High Security . | . . . . . . . . . . . Max Security . | . . . . . . . . . . . Squads Dispatched 9 | . 1 . . . 3 5 . . . . Investigation 4 | . 1 . . . 2 1 . . . . Extermination 1 | . . . . . . 1 . . . . Reinforcement 2 | . . . . . . 2 . . . . Assault . | . . . . . . . . . . . Garrison 2 | . . . . . 1 1 . . . . Intercept . | . . . . . . . . . . . Construction Impeded . | . . . . . . . . . . . Haulers Reinforced 1 | . . . . . . 1 . . . . Stealth | -11 -10 -10 -10 -9 -8 -7 -7 -7 -7 -7 --------- Run | Scr Mat Min Exi Min Mat Fac Low Low Zio Dee Distress Signals 7 | . 1 . . . 5 1 . . . . Communications Jammed 1 | . . . . . . 1 . . . . Distress Signals . | . . . . . . . . . . . Times Spotted 111 | . 6 3 . 4 52 21 . 18 . 7 Peak Tracking Total 8 | . 3 2 . 3 8 7 . 7 . 7 Tactical Retreats 14 | . . . . 2 8 1 . 3 . . Traps | -11 -10 -10 -10 -9 -8 -7 -7 -7 -7 -7 ------- Run | Scr Mat Min Exi Min Mat Fac Low Low Zio Dee Traps Triggered 4 | . 2 . . . 1 1 . . . . Indirectly . | . . . . . . . . . . . Trap Hack Attempts . | . . . . . . . . . . . Triggered . | . . . . . . . . . . . Disarmed . | . . . . . . . . . . . Reprogrammed . | . . . . . . . . . . . Reused 1 | . . . . . . . . . . 1 Traps Extracted . | . . . . . . . . . . . Installed 2 | . . . . . . . 1 . . 1 Triggered 5 | . . . . . 1 1 . 3 . . Machines | -11 -10 -10 -10 -9 -8 -7 -7 -7 -7 -7 ---------- Run | Scr Mat Min Exi Min Mat Fac Low Low Zio Dee Machines Disabled 13 | . . . . . 5 7 . 1 . . Max in Single Turn 4 | . . . . . 2 4 . 1 . . Garrison Access 2 | . . . . . 1 1 . . . . Machines Sabotaged . | . . . . . . . . . . . Garrisons Compromised . | . . . . . . . . . . . Overloaded Fab Kills . | . . . . . . . . . . . Fab Network Shutdowns . | . . . . . . . . . . . Hacking | -11 -10 -10 -10 -9 -8 -7 -7 -7 -7 -7 --------- Run | Scr Mat Min Exi Min Mat Fac Low Low Zio Dee Machines Accessed 31 | . 5 . 5 . 14 5 . 2 . . Terminals 16 | . 4 . . . 11 1 . . . . Fabricators 1 | . . . . . . 1 . . . . Repair Stations 2 | . . . . . 2 . . . . . Recycling Units 1 | . 1 . . . . . . . . . Scanalyzers 1 | . . . . . . 1 . . . . Garrison Access 3 | . . . . . 1 2 . . . . Total Hacks 139 | . 13 . 49 . 48 18 . 11 . . Successful 107 | . 9 . 49 . 25 13 . 11 . . Failed 32 | . 4 . . . 23 5 . . . . Catastrophic 2 | . . . . . 1 1 . . . . Database Lockouts . | . . . . . . . . . . . Manual 44 | . 11 . 1 . 25 3 . . 4 . Terminals 52 | . 11 . . . 39 2 . . . . Fabricators 2 | . . . . . . 2 . . . . Repair Stations 6 | . . . . . 6 . . . . . Recycling Units 2 | . 2 . . . . . . . . . Scanalyzers 11 | . . . . . . 11 . . . . Garrison Access 6 | . . . . . 3 3 . . . . Terminal Hacks 74 | . 3 . 49 . 11 . . 11 . . Record 58 | . . . 48 . . . . 10 . . Robot Analysis 2 | . . . . . 2 . . . . . Open Door 1 | . . . . . . . . 1 . . Branch Access Points 1 | . 1 . . . . . . . . . Alert Level 3 | . . . . . 3 . . . . . Unreport Threat 4 | . . . . . 4 . . . . . Locate Traps 4 | . 2 . . . 2 . . . . . EX-Prototype ID Bank 1 | . . . 1 . . . . . . . Fabricator Hacks 1 | . . . . . . 1 . . . . Network Status 1 | . . . . . . 1 . . . . Repair Station Hacks 4 | . . . . . 4 . . . . . Scan Component 2 | . . . . . 2 . . . . . Repair 2 | . . . . . 2 . . . . . Recycling Unit Hacks 1 | . 1 . . . . . . . . . Report Inventory 1 | . 1 . . . . . . . . . Scanalyzer 11 | . . . . . . 11 . . . . Insert Component 6 | . . . . . . 6 . . . . Analyze 5 | . . . . . . 5 . . . . Garrison Access Hacks 2 | . . . . . 1 1 . . . . Seal Access 2 | . . . . . 1 1 . . . . Unauthorized Hacks 43 | . 13 . . . 27 3 . . . . Terminals 13 | . 4 . . . 9 . . . . . Botnet 13 | . 4 . . . 9 . . . . . Fabricators . | . . . . . . . . . . . Repair Stations . | . . . . . . . . . . . Recycling Units 1 | . 1 . . . . . . . . . Tunnel 1 | . 1 . . . . . . . . . Scanalyzers . | . . . . . . . . . . . Garrison Access . | . . . . . . . . . . . Data Cores Recovered 1 | . . . . . 1 . . . . . Used . | . . . . . . . . . . . Hacking Detections 21 | . 3 . . . 14 4 . . . . Full Trace Events . | . . . . . . . . . . . Feedback Events . | . . . . . . . . . . . Feedback Blocked . | . . . . . . . . . . . Robot Schematics Acquired . | . . . . . . . . . . . Robots Built . | . . . . . . . . . . . Matter . | . . . . . . . . . . . Time . | . . . . . . . . . . . Total Robot Build Rating . | . . . . . . . . . . . Part Schematics Acquired 5 | . . . . . . 5 . . . . Parts Built . | . . . . . . . . . . . Matter . | . . . . . . . . . . . Time . | . . . . . . . . . . . Total Part Build Rating . | . . . . . . . . . . . Parts Repaired 2 | . . . . . 2 . . . . . Time 51 | . . . . . 51 . . . . . Parts Recycled . | . . . . . . . . . . . Recycled Matter . | . . . . . . . . . . . Retrieved Matter . | . . . . . . . . . . . Retrieved Components . | . . . . . . . . . . . Parts Scanalyzed 5 | . . . . . . 5 . . . . Part Schematics Acquired 5 | . . . . . . 5 . . . . Parts Damaged 1 | . . . . . . 1 . . . . Bothacking | -11 -10 -10 -10 -9 -8 -7 -7 -7 -7 -7 ------------ Run | Scr Mat Min Exi Min Mat Fac Low Low Zio Dee Used RIF Installer . | . . . . . . . . . . . Robots Hacked . | . . . . . . . . . . . Non-combat . | . . . . . . . . . . . Combat . | . . . . . . . . . . . Robot Hacks Applied . | . . . . . . . . . . . Relay Couplers Released . | . . . . . . . . . . . Robots Rewired . | . . . . . . . . . . . Allies Hacked 1 | . . . . . . 1 . . . . Hacks Repelled . | . . . . . . . . . . . Allies | -11 -10 -10 -10 -9 -8 -7 -7 -7 -7 -7 -------- Run | Scr Mat Min Exi Min Mat Fac Low Low Zio Dee Total Allies 8 | . . 2 . 3 . 3 . . . . Largest Group 3 | . . 2 2 3 3 3 1 . . . Highest-Rated Group 93 | . . 46 46 40 40 93 31 . . . Highest-Rated Ally 31 | . . 31 31 16 16 31 31 . . . Total Orders 3 | . . . . 3 . . . . . . GUARD 3 | . . . . 3 . . . . . . Ally Attacks 36 | . . . . 1 7 28 . . . . Total Damage 461 | . . . . 11 93 357 . . . . Kills 5 | . . . . 1 . 4 . . . . Allies Corrupted . | . . . . . . . . . . . Allies Melted . | . . . . . . . . . . . Intel | -11 -10 -10 -10 -9 -8 -7 -7 -7 -7 -7 ------- Run | Scr Mat Min Exi Min Mat Fac Low Low Zio Dee Robot Analysis Total 2 | . . . . . 2 . . . . . Derelict Logs Recovered 7 | . . 1 . 1 . . 1 3 1 . Drone Launches . | . . . . . . . . . . . Drone Recoveries . | . . . . . . . . . . . Exploration | -11 -10 -10 -10 -9 -8 -7 -7 -7 -7 -7 ------------- Run | Scr Mat Min Exi Min Mat Fac Low Low Zio Dee Turns Passed 9348 | 65 394 701 1007 397 1998 1497 455 1095 1564 175 Spaces Moved 6388 | 41 267 528 824 271 961 972 358 777 1258 131 Core 30 | 7 . . . . . . . . . 23 Treads . | . . . . . . . . . . . Legs 6358 | 34 267 528 824 271 961 972 358 777 1258 108 Wheels . | . . . . . . . . . . . Hover . | . . . . . . . . . . . Flight . | . . . . . . . . . . . Fastest Speed 50 | 50 120 120 120 120 120 120 125 122 122 50 Average Speed 121 | 111 120 120 120 120 120 121 125 123 122 109 Slowest Speed 150 | 120 150 120 120 150 120 125 125 125 122 123 Overloaded Moves . | . . . . . . . . . . . Propulsion Burnouts . | . . . . . . . . . . . Robots Hopped . | . . . . . . . . . . . Cave-ins Triggered . | . . . . . . . . . . . Exploration Rate (%) 57 | 4 47 75 93 52 67 27 56 79 89 40 Regions Visited 10 Branch Regions 7 Pre-discovered Areas 9 | . 1 1 1 2 . . . 1 3 . Known Exits Taken 1 | . 1 . . . . . . . . . Unknown Exits Taken 9 | 1 . 1 1 1 1 1 1 1 1 . Scrap Searched 12 | . . 2 . 1 . . 5 2 2 . Spaces Dug 9 | . . 7 . . . 2 . . . . Terrain Destroyed 155 | . . 7 . . 95 45 . 8 . . Melee 9 | . . 7 . . . 2 . . . . Projectile 1 | . . . . . . 1 . . . . AOE 145 | . . . . . 95 42 . 8 . . Actions | -11 -10 -10 -10 -9 -8 -7 -7 -7 -7 -7 --------- Run | Scr Mat Min Exi Min Mat Fac Low Low Zio Dee Total 7561 | 57 318 571 843 303 1619 1193 368 851 1288 150 Wait 535 | 5 2 23 . 13 383 100 . 4 5 . Move 6378 | 40 266 527 823 270 960 971 357 776 1257 131 Hop . | . . . . . . . . . . . Pick Up 138 | 6 13 3 11 . 61 20 5 12 7 . Fast Attach 34 | 6 2 . 3 2 9 5 . 3 4 . Attach 25 | . 1 . . . 12 4 . 4 . 4 Detach 4 | . . . 1 . 2 . . . . 1 Swap 73 | . 8 2 . . 28 22 . 9 4 . Drop 129 | . 14 4 5 . 51 27 5 10 11 2 Fire 195 | . 11 . . . 107 41 . 25 . 11 Melee 48 | . 1 12 . 18 6 3 . 8 . . Ram . | . . . . . . . . . . . Kick . | . . . . . . . . . . . Crush . | . . . . . . . . . . . Escape Stasis . | . . . . . . . . . . . Rewire . | . . . . . . . . . . . Trap 2 | . . . . . . . 1 . . 1 Miscellaneous . | . . . . . . . . . . . Route ------- -11/Scrapyard -10/Materials (discovered 2 exits: [*Mat] / *Min) -10/Mines (discovered 2 exits: [*Mat] / *Exi) -10/Exiles (discovered 2 exits: [*Min x2]) -9/Mines -8/Materials -7/Factory -7/Lower Caves -7/Lower Caves (discovered 2 exits: Fac / *Zio) -7/Zion (discovered 2 exits: [*Dee] / [*Pro]) -7/Deep Caves History --------- Turn | Location | Event 14 | -11/Scrapyard | Discovered new exit (range 15) 66 | -11/Scrapyard | Entered Materials 286 | -10/Materials | Discovered new exit (range 11) 314 | -10/Materials | Identified exit to Mines 318 | -10/Materials | Build established: Mutant 460 | -10/Materials | Entered Mines 504 | -10/Mines | Discovered new exit (range 10) 544 | -10/Mines | Learned location of Zion (-7) 850 | -10/Mines | Joined a pair of Derelicts in attacking an 0b10 outpost 1150 | -10/Mines | Deemed a non-threat by the Exiles lab entrance 1150 | -10/Mines | Discovered new exit (range 5) 1161 | -10/Mines | Entered Exiles 1161 | -10/Exiles | Accompanied by 2 allies 1179 | -10/Exiles | Discovered new exit (range 15) 1191 | -10/Exiles | Led the pair of lost Derelicts to a safe place 1217 | -10/Exiles | Met 8R-AWN 1236 | -10/Exiles | Met EX-HEX 1291 | -10/Exiles | Met EX-DEC 1358 | -10/Exiles | Discovered new exit (range 14) 1495 | -10/Exiles | Visited The Gauntlet 1721 | -10/Exiles | Met EX-BIN 1817 | -10/Exiles | Aligned with FarCom system 1818 | -10/Exiles | Given EX-Vault access code 1848 | -10/Exiles | Opened EX-Vault 1859 | -10/Exiles | Found Lightpack 2.0 1923 | -10/Exiles | Warned to stay clear of 0b10 Research branches 2168 | -10/Exiles | Left Exiles lab with Lightpack 2.0 2168 | -10/Exiles | Entered Mines 2182 | -9/Mines | Learned location of Storage (-8) 2411 | -9/Mines | Assisted by bots powering up and referring to "LRC-V3" 2466 | -9/Mines | Build established: Assassin 2472 | -9/Mines | Core integrity fell below 50% 2552 | -9/Mines | Discovered new exit (range 9) 2565 | -9/Mines | Entered Materials 2565 | -8/Materials | Accompanied by 3 allies 2565 | -8/Materials | Evolved 4 slots: Propulsion x2, Utility x2 3386 | -8/Materials | Build established: Scavenger-Mutant 3424 | -8/Materials | Garrison activated, responded to threat 3469 | -8/Materials | Destroyed 7 combat bots 3643 | -8/Materials | Repaired Med. Armor Plating 4390 | -8/Materials | Lost 3 parts (1n1u1w) 4424 | -8/Materials | Build established: Hauler-Mutant 4464 | -8/Materials | Repaired Insulated Plating 4539 | -8/Materials | Discovered new exit (range 9) 4563 | -8/Materials | Entered Factory 4563 | -7/Factory | Evolved 2 slots: Utility x1, Weapon x1 4910 | -7/Factory | Garrison activated, responded to threat 5048 | -7/Factory | Lost 3 parts (1p2n) 5152 | -7/Factory | Build established: Scavenger-Skirmisher 5255 | -7/Factory | Allied Derelicts emerged from ambush trap array 5541 | -7/Factory | Build established: Hauler-Skirmisher 6047 | -7/Factory | Discovered new exit (range 5) 6060 | -7/Factory | Entered Lower Caves 6060 | -7/Lower Caves | Accompanied by 1 ally 6075 | -7/Lower Caves | Encountered a Warlord checkpoint 6162 | -7/Lower Caves | Learned Factory terminal intel 6362 | -7/Lower Caves | Build established: Hauler-Tank 6506 | -7/Lower Caves | Discovered new exit (range 9) 6515 | -7/Lower Caves | Entered another Lower Caves area 6621 | -7/Lower Caves | Learned Factory terminal intel 6664 | -7/Lower Caves | Lost 11 parts (2p1n5u3w) 6793 | -7/Lower Caves | Learned location of Extension (-5) 6793 | -7/Lower Caves | Identified exit to Factory 6793 | -7/Lower Caves | Learned location of 1 exit from Research 6793 | -7/Lower Caves | Learned Extension emergency access door positions 6793 | -7/Lower Caves | Learned Research stockpile data 6793 | -7/Lower Caves | Learned Extension security intel 6793 | -7/Lower Caves | Learned Armory security intel 6793 | -7/Lower Caves | Learned Factory terminal intel 7174 | -7/Lower Caves | Build established: Tank 7255 | -7/Lower Caves | Encountered a Warlord checkpoint 7481 | -7/Lower Caves | Learned Factory trap positions 7522 | -7/Lower Caves | Discovered new exit (range 6) 7610 | -7/Lower Caves | Entered Zion 7641 | -7/Zion | Acquired unknown access codes intercepted by a Zionite 7670 | -7/Zion | Build established: Scavenger-Mutant 7706 | -7/Zion | Discovered new exit (range 19) 8048 | -7/Zion | Learned Factory scanalyzer intel 8066 | -7/Zion | Learned location of Warlord (-4) 8166 | -7/Zion | Rebuked by Imprinter 8392 | -7/Zion | Found Prototype Device 8392 | -7/Zion | Identified Phasing AFG 8798 | -7/Zion | Visited the Megawrench Repair Shop 8798 | -7/Zion | Megawrench repaired 8 parts 8834 | -7/Zion | Build established: Scavenger-Tank 9016 | -7/Zion | Found Relay Coupler [Programmer] 9019 | -7/Zion | Found Relay Coupler [Programmer] 9149 | -7/Zion | Opened final containment barrier to the Deep Caves 9166 | -7/Zion | Discovered new exit (range 5) 9168 | -7/Zion | Saw the warning signs outside the Deep Caves entrance 9174 | -7/Zion | Entered Deep Caves 9291 | -7/Deep Caves | Attacked by Z-Imprinter 9319 | -7/Deep Caves | Core integrity fell below 50% 9335 | -7/Deep Caves | Z-Facility disabled 9342 | -7/Deep Caves | Core integrity fell below 20% 9349 | -7/Deep Caves | Destroyed by CW-VSB(z) with Zionite Laser-S Last Messages --------------- 09316_ Hpw. Shotgun destroyed. 09318_ Imp. Medium Armor Plating destroyed. 09322_ Lgt. Nuclear Core destroyed. 09324_ Carbon-fiber Leg destroyed. 09328_ Mak. Sensor Array destroyed. 09332_ Insulated Plating destroyed. 09333_ Relay Coupler [Programmer] fries itself. 09334_ Dropped Dirty Bomb Trap. 09334_ Imp. Titanium Leg destroyed. 09334_ Installed Dirty Bomb Trap. 09335_ Z-Facility disabled. 09335_ Relay Coupler [Programmer] fries itself. 09337_ Dropped Riot Gun. 09337_ Aluminum Leg destroyed. 09343_ Carbon-fiber Leg destroyed. 09345_ 0N-0BD(z) triggered Dirty Bomb Trap. 09345_ An explosion rips through the floor. 09346_ 3Y-TZO(z) system terminally corrupted. 09346_ Prototype Energy Gun fried. 09346_ Imp. Heat Sink destroyed. Map ----- +----------------------------------------------------+ | ?????????????????????????????? ???????? | | ??????????????????????????? "????? | | ????????????????????????? "????? | | ?????????????????????? "????? | | ??????????????????????# """??? | | ???????????????????#### """??? | | ??????????????????## # ""??? | | ??????????????????# """?? | | ??????????????????# """?? | | ??????????????????? """?? | | ???????????????????? """"? | | ?????????????????????# """"" | | ?????????????????????# """"" | | ??????????????????????# """"" | | ??????????????????????# """"" | | ???????????????????###?# """" | | ??????????????????## ?# " "" | | ??????????????????# ## "" | | ??????????????????# # """ | | ?????????????????## | | ????????????###### | | ???????????## | | ??????????## ! | | ??????????# %! | | ?????????? # z * | | ?????????????????# @ I [ | | ?????????????????### z | | ???????????????????# z | | ???????????????????## z | | ????????????????????# | | ????????????????????# ### ;## | | ????????????????????## ###?# #### | | ?????????????????????# #???#####??### | | ?????????????????????## #######????????????###### | | ??????????????????????###????????????????????????? | | | | | | | | | | | | | | | | | | | | | | | | | | | | | | | +----------------------------------------------------+ Best States ------------- Heat Dissipation 62 Energy Generation 14 Energy Capacity 265 Matter Stores 300 Matter Capacity 300 Sight Range 22 Robot Scan Range 22 Terrain Scan Density 10 Jamming Range 8 Armor Coverage 375 Resistance: EM 15 Evasion (%) 50 Item Schematics ----------------- Hacking Suite | -7/Factory | Scanalyzed System Shield | -7/Factory | Scanalyzed Remote Datajack | -7/Factory | Scanalyzed Med. Storage Unit | -7/Factory | Scanalyzed Lrg. Storage Unit | -7/Factory | Scanalyzed Robot Schematics ------------------ None Fabricated ------------ Nothing Alien Tech Used ----------------- None Achievements -------------- Packrat Challenges ------------ None Game ------ Seed MyomerComponentNukerbomber Manual? 0 Play Time 01:58:52 Cumulative 106.6 hours Start 2019.11.17 @ 13:58:48 End 2019.11.17 @ 18:05:40 Sessions 3 Manual Loads 0 Difficulty Rogue Special Mode None Game No. 39 Rogue 16 Adventurer 22 Explorer 1 Win Type - Total 3 Types 3/0/0/0/0/0/0 Lore% 55 Gallery% 64 Achievement% 49 Wizard Run 0 Options --------- ASCII 0 Keyboard 0 Movement Numpad Keybinds 0 Fullscreen 0 Font 20/Terminus Map View 76x50 Tactical HUD 1 Map Filters NONE Filters NONE Steam 1 RUN: 845f337d-6de4-44b4-bc59-e35fc7e073de